Workbook

Sheet Instructions
B2: Budget Worksheet Instructions
B3: This worksheet uses macros. You must enable the macros and trust the document for the workbook to function correctly. Purpose: This template provides a consistent method for applicants to submit their grant budget proposals and ensure an equitable review process as all applicants will have included the same level of information. This will also assist applicants in considering more specifics of their proposals and facilitate applicants with writing their budget narratives. About the workbook: This workbook consists of seven tabs, including this instructions tab, five budget year tabs, and a budget detail summary. Applicants are required to complete only the number of budget years applicable to the respective grant for which they are applying. Each budget year sheet is identifcal and the budget deail summary sheet culminates all of the information from each completed budget year sheet.
B11: General Instructions: 1. Each budget category starts with two useable rows in which you can add your line items. 2. Do not enter information into the first row of each section (the row containing the add and delete row buttons). 3. To add rows to a section, select a cell in that section before selecting the "Add Row" button. (If you do not, you may receive an error message or a row may appear in the wrong place) 4. If you know the number of rows you will need in each section, it is recommended to add all rows before entering information (for ease of use). 5. If you add too many rows to a section, you may delete unnecessary rows. 6. To delete a row, select a cell in the desired row and then select "Delete Row." 7. Complete all columns for each line item you enter, even if you enter a 0 or N/A. 8. After completing all line items for each required grant year, review the budget detail summary to ensure everything is correct. See below for an example budget. Definitions for each category and other important terms can be found below the example budget.
B13: Example Budget | J13: Explanations
B14: Personnel | J14: Tim is being paid an hourly rate of $53. The grantee anticipates that he will work 1040 hours in year 1 and 100% of those hours will be dedicated to the project. Juanita is a salaried employee. Her time worked is 1 to represent her 1 year's worth of salary contributions. The grantee anticipates that she will spend 25% of her time on the grant project, and that time will be paid for through grant funds.
B15: Name | C15: Position Title | D15: Salary | E15: Basis | F15: Time Worked | G15: Percentage | H15: Total Cost
D16: (Do not enter information into this row)
B17: Tim Smith | C17: Data Analyst | D17: 53 | E17: Hourly | F17: 1040 | G17: 1 | H17: =D17*F17*G17 -> 55120
B18: Juanita Martinez | C18: Lead Researcher | D18: 105000 | E18: Yearly | F18: 1 | G18: 0.25 | H18: =D18*F18*G18 -> 26250
H19: =D19*F19*G19 -> 0
H20: =D20*F20*G20 -> 0
H21: =SUM(Table216[Total Cost]) -> 81370
B23: Fringe Benefits | J23: The grantee will pay for a portion of Tim's healthcare to offset the cost of being a part-time employee paying out of pocket for healthcare. The applicant has agreed to cover 10% of the healthcare cost
B24: Name | C24: Position Title | D24: Salary | E24: Basis | F24: Time Worked | G24: Fringe Percentage | H24: Total Cost
D25: (Do not enter information into this row)
B26: Tim Smith | C26: Data Analyst | D26: 53 | E26: Hourly | F26: 1040 | G26: 0.1 | H26: =D26*F26*G26 -> 5512
H27: =D27*F27*G27 -> 0
H28: =SUM(Table2422[Total Cost]) -> 5512
B30: Travel | J30: A team of three is going to a conference in Denver. Their per diem will cover three meals per day for three days (x three people = 9). All three will have separate hotel rooms costiing $275 ($275 x 3 people = $825/day) for three nights. The applicant is also requesting the cost of plane tickets at $235 per person for three people.
B31: Purpose of Travel | C31: Location | D31: Expense Type | E31: Basis | F31: Cost | G31: Quantity | H31: Total Cost
H32: =Table517[[#This Row],[Cost]]*Table517[[#This Row],[Quantity]] -> 0
B33: Conference | C33: Denver, CO | D33: Per diem | E33: Per meal | F33: 35 | G33: 9 | H33: =Table517[[#This Row],[Cost]]*Table517[[#This Row],[Quantity]] -> 315
B34: Conference | C34: Denver, CO | D34: Lodging | E34: Per day | F34: 825 | G34: 3 | H34: =Table517[[#This Row],[Cost]]*Table517[[#This Row],[Quantity]] -> 2475
B35: Conference | C35: Denver, CO | D35: Flight | E35: Per flight | F35: 235 | G35: 3 | H35: =Table517[[#This Row],[Cost]]*Table517[[#This Row],[Quantity]] -> 705
H36: =Table517[[#This Row],[Cost]]*Table517[[#This Row],[Quantity]] -> 0
H37: =SUM(Table517[Total Cost]) -> 3495
B39: Professional Development | J39: This section covers the registration fees for the conference in Denver for three people.
B40: Course Name | C40: Purpose | D40: Location | E40: Delivery Method | F40: Cost | G40: # of Staff | H40: Total Cost
D41: (Do not enter information into this row) | H41: =Table618[[#This Row],[Cost]]*Table618[[#This Row],['# of Staff]] -> 0
B42: Annual Conference of Researchers | C42: Networking and Collaboration | D42: Denver, CO | E42: In Person | F42: 300 | G42: 3 | H42: =Table618[[#This Row],[Cost]]*Table618[[#This Row],['# of Staff]] -> 900
H43: =Table618[[#This Row],[Cost]]*Table618[[#This Row],['# of Staff]] -> 0
H44: =SUM(Table618[],Table618[Total Cost]) -> 2103
B46: Equipment | J46: This applicant is requesting a laptop and subscription services for the part-time staff assigned to the project. The subscriptions are single items, so they are listed as individual units costing a certain amount each
B47: Item | C47: Type | D47: Cost | E47: Unit | F47: Basis | G47: Quantity | H47: Total Cost
H48: =Table719[[#This Row],[Cost]]*Table719[[#This Row],[Quantity]] -> 0
B49: Microsoft PowerBI Pro | C49: Non-Expendable | D49: 75 | E49: Individual | F49: Each | G49: 1 | H49: =Table719[[#This Row],[Cost]]*Table719[[#This Row],[Quantity]] -> 75
B50: Tableau Subscription | C50: Non-Expendable | D50: 100 | E50: Individual | F50: Each | G50: 1 | H50: =Table719[[#This Row],[Cost]]*Table719[[#This Row],[Quantity]] -> 100
B51: Laptop | C51: Non-Expendable | D51: 456 | E51: Individual | F51: Each | G51: 1 | H51: =Table719[[#This Row],[Cost]]*Table719[[#This Row],[Quantity]] -> 456
H52: =SUM(Table719[Total Cost]) -> 631
B54: Supplies | J54: The applicant is requesting general office supplies for the part-time staff assigned to the project. Info packs will be the culmination of reasearch provided to stakeholders. Once printed, they will cost $45 per box and the applicant is requesting 25 boxes. The applicant would detail the total number of info packs and office supplies in the narrative.
B55: Item | C55: Type | D55: Cost | E55: Unit | F55: Basis | G55: Quantity | H55: Total Cost
H56: =Table7221[[#This Row],[Cost]]*Table7221[[#This Row],[Quantity]] -> 0
B57: Office Supplies | C57: Expendable | D57: 300 | E57: Other | F57: Other | G57: 1 | H57: =Table7221[[#This Row],[Cost]]*Table7221[[#This Row],[Quantity]] -> 300
B58: Info Packs | C58: Expendable | D58: 45 | E58: Box | F58: Per Box | G58: 25 | H58: =Table7221[[#This Row],[Cost]]*Table7221[[#This Row],[Quantity]] -> 1125
H59: =SUM(Table7221[Total Cost]) -> 1425
B61: Other | J61: This applicant has no additional line items, so this section remains blank
B62: Item | C62: Type | D62: Cost | E62: Unit | F62: Basis | G62: Quantity | H62: Total Cost
H63: =Table7920[[#This Row],[Cost]]*Table7920[[#This Row],[Quantity]] -> 0
H64: =Table7920[[#This Row],[Cost]]*Table7920[[#This Row],[Quantity]] -> 0
H65: =Table7920[[#This Row],[Cost]]*Table7920[[#This Row],[Quantity]] -> 0
H66: =SUM(Table7920[Total Cost]) -> 0
B68: The yearly total calculates here:
B71: Year 1 Budget Total | C71: =Table216[[#Totals],[Total Cost]]+Table517[[#Totals],[Total Cost]]+Table618[[#Totals],[Total Cost]]+Table719[[#Totals],[Total Cost]]+Table7920[[#Totals],[Total Cost]] -> 87599
B74: Definitions
B75: Personnel | C75: This section should contain all employees who will work on the project if any portion of their compensation will be paid out by grant funds. Include the employees title and name, if available, along with their rate and anticipated time and percentage of work within the respective budget year. All rates should be comparable to those of similar positions across your institution. In the accompanying budget narrative, include the anticipated responsibilities of the listed employees for the respective grant year.
B76: Fringe Benefits | C76: This section should contain any additional benefits paid out to employees listed in the personnel section. Fringe benefits should align with any prenegotiated state or federal rates.
B77: Travel | C77: In this section, itemize all travel expenses related to the project. Any proposed travel must align with proposed project objectives, and applicants must describe this alignment in the accompanying budget narrative. Travel expenses should include any expense expected to be paid for through grant funds such as meals, flights, and lodging. Costs may not exceed those allowable by the US General Services Administration (GSA). For more information, visist their website:
C78: https://www.gsa.gov/travel/plan-book/per-diem-rates
B79: Professional Development | C79: This section should contain any professional development registration fees or other associated costs for which the applicant intends to use grant funds. Travel associated with professional development opportunities should be addressed in the travel section.
B80: Equipment | C80: Equipment generally includes any non-expendible items an applicant intends to purchase with grant funds. This may include computer hardward and softwware or other items that will not be consumed or discarded withing approximatey two years.
B81: Supplies | C81: Supplies generally include expendable items that will be consumed over the duration of the project or within approximately two years. This may inlcude any office supplies.
B82: Other | C82: This section is for any line item applicants feel do not fit under any of the previous categories.
B83: Expendable | C83: Expendible items are items that are consumed throughout the project period or have a life span of fewer than two years (i.e., these items are eventually discarded). Such items may include office supplies.
B84: Non-Expendable | C84: Non-expendible items are those intended for long-term use and are general not consumed or discarded by the project end. Items that have an anticipated lifespan of approximately two or more years are generally considered non-expendable. Such items may include computer hardware and software.

Sheet Year 1
B2: Personnel | K2: Instruction Reminders:
B3: Name | C3: Position Title | D3: Salary | E3: Basis | F3: Time Worked | G3: Percentage | H3: Total Cost | K3: To add a row to a section, you must click on an existing row in that section and select "Add Row." If you know how many rows you need in a section, add the rows prior to starting as you may have to remove information if you add rows after entering data.
D4: (Do not enter information into this row)
H5: =D5*F5*G5 -> 0
H6: =D6*F6*G6 -> 0
H7: =SUM(Table2[Total Cost]) -> 0
B9: Fringe Benefits
B10: Name | C10: Position Title | D10: Salary | E10: Basis | F10: Time Worked | G10: Fringe Percentage | H10: Total Cost
D11: (Do not enter information into this row)
H12: =D12*F12*G12 -> 0
H13: =D13*F13*G13 -> 0
H14: =SUM(Table24[Total Cost]) -> 0
B16: Travel
B17: Purpose of Travel | C17: Location | D17: Expense Type | E17: Basis | F17: Cost | G17: Quantity | H17: Total Cost
H18: =Table5[[#This Row],[Cost]]*Table5[[#This Row],[Quantity]] -> 0
H19: =Table5[[#This Row],[Cost]]*Table5[[#This Row],[Quantity]] -> 0
H20: =Table5[[#This Row],[Cost]]*Table5[[#This Row],[Quantity]] -> 0
H21: =SUM(Table5[Total Cost]) -> 0
B23: Professional Development
B24: Course Name | C24: Purpose | D24: Location | E24: Delivery Method | F24: Cost | G24: # of Staff | H24: Total Cost
D25: (Do not enter information into this row) | H25: =Table6[[#This Row],[Cost]]*Table6[[#This Row],['# of Staff]] -> 0
H26: =Table6[[#This Row],[Cost]]*Table6[[#This Row],['# of Staff]] -> 0
H27: =Table6[[#This Row],[Cost]]*Table6[[#This Row],['# of Staff]] -> 0
H28: =SUM(Table6[],Table6[Total Cost]) -> 0
B30: Equipment
B31: Item | C31: Type | D31: Cost | E31: Unit | F31: Basis | G31: Quantity | H31: Total Cost
H32: =Table7[[#This Row],[Cost]]*Table7[[#This Row],[Quantity]] -> 0
H33: =Table7[[#This Row],[Cost]]*Table7[[#This Row],[Quantity]] -> 0
H34: =Table7[[#This Row],[Cost]]*Table7[[#This Row],[Quantity]] -> 0
H35: =SUM(Table7[Total Cost]) -> 0
B37: Supplies
B38: Item | C38: Type | D38: Cost | E38: Unit | F38: Basis | G38: Quantity | H38: Total Cost
H39: =Table72[[#This Row],[Cost]]*Table72[[#This Row],[Quantity]] -> 0
H40: =Table72[[#This Row],[Cost]]*Table72[[#This Row],[Quantity]] -> 0
H41: =Table72[[#This Row],[Cost]]*Table72[[#This Row],[Quantity]] -> 0
H42: =SUM(Table72[Total Cost]) -> 0
B44: Other
B45: Item | C45: Type | D45: Cost | E45: Unit | F45: Basis | G45: Quantity | H45: Total Cost
H46: =Table79[[#This Row],[Cost]]*Table79[[#This Row],[Quantity]] -> 0
H47: =Table79[[#This Row],[Cost]]*Table79[[#This Row],[Quantity]] -> 0
H48: =Table79[[#This Row],[Cost]]*Table79[[#This Row],[Quantity]] -> 0
H49: =SUM(Table79[Total Cost]) -> 0
B54: Year 1 Budget Total | C54: =Table2[[#Totals],[Total Cost]]+Table5[[#Totals],[Total Cost]]+Table6[[#Totals],[Total Cost]]+Table7[[#Totals],[Total Cost]]+Table79[[#Totals],[Total Cost]] -> 0

Sheet Year 2
B2: Personnel | K2: Instruction Reminders:
B3: Name | C3: Position Title | D3: Salary | E3: Basis | F3: Time Worked | G3: Percentage | H3: Total Cost | K3: To add a row to a section, you must click on an existing row in that section and select "Add Row." If you know how many rows you need in a section, add the rows prior to starting as you may have to remove information if you add rows after entering data.
D4: (Do not enter information into this row)
H5: =D5*F5*G5 -> 0
H6: =D6*F6*G6 -> 0
H7: =SUM(Table243[Total Cost]) -> 0
B9: Fringe Benefits
B10: Name | C10: Position Title | D10: Salary | E10: Basis | F10: Time Worked | G10: Fringe Percentage | H10: Total Cost
D11: (Do not enter information into this row)
H12: =D12*F12*G12 -> 0
H13: =D13*F13*G13 -> 0
H14: =SUM(Table2449[Total Cost]) -> 0
B16: Travel
B17: Purpose of Travel | C17: Location | D17: Expense Type | E17: Basis | F17: Cost | G17: Quantity | H17: Total Cost
H18: =Table544[[#This Row],[Cost]]*Table544[[#This Row],[Quantity]] -> 0
H19: =Table544[[#This Row],[Cost]]*Table544[[#This Row],[Quantity]] -> 0
H20: =Table544[[#This Row],[Cost]]*Table544[[#This Row],[Quantity]] -> 0
H21: =SUM(Table544[Total Cost]) -> 0
B23: Professional Development
B24: Course Name | C24: Purpose | D24: Location | E24: Delivery Method | F24: Cost | G24: # of Staff | H24: Total Cost
D25: (Do not enter information into this row) | H25: =Table645[[#This Row],[Cost]]*Table645[[#This Row],['# of Staff]] -> 0
H26: =Table645[[#This Row],[Cost]]*Table645[[#This Row],['# of Staff]] -> 0
H27: =Table645[[#This Row],[Cost]]*Table645[[#This Row],['# of Staff]] -> 0
H28: =SUM(Table645[],Table645[Total Cost]) -> 0
B30: Equipment
B31: Item | C31: Type | D31: Cost | E31: Unit | F31: Basis | G31: Quantity | H31: Total Cost
H32: =Table746[[#This Row],[Cost]]*Table746[[#This Row],[Quantity]] -> 0
H33: =Table746[[#This Row],[Cost]]*Table746[[#This Row],[Quantity]] -> 0
H34: =Table746[[#This Row],[Cost]]*Table746[[#This Row],[Quantity]] -> 0
H35: =SUM(Table746[Total Cost]) -> 0
B37: Supplies
B38: Item | C38: Type | D38: Cost | E38: Unit | F38: Basis | G38: Quantity | H38: Total Cost
H39: =Table7248[[#This Row],[Cost]]*Table7248[[#This Row],[Quantity]] -> 0
H40: =Table7248[[#This Row],[Cost]]*Table7248[[#This Row],[Quantity]] -> 0
H41: =Table7248[[#This Row],[Cost]]*Table7248[[#This Row],[Quantity]] -> 0
H42: =SUM(Table7248[Total Cost]) -> 0
B44: Other
B45: Item | C45: Type | D45: Cost | E45: Unit | F45: Basis | G45: Quantity | H45: Total Cost
H46: =Table7947[[#This Row],[Cost]]*Table7947[[#This Row],[Quantity]] -> 0
H47: =Table7947[[#This Row],[Cost]]*Table7947[[#This Row],[Quantity]] -> 0
H48: =Table7947[[#This Row],[Cost]]*Table7947[[#This Row],[Quantity]] -> 0
H49: =SUM(Table7947[Total Cost]) -> 0
B54: Year 2 Budget Total | C54: =Table243[[#Totals],[Total Cost]]+Table544[[#Totals],[Total Cost]]+Table645[[#Totals],[Total Cost]]+Table746[[#Totals],[Total Cost]]+Table7947[[#Totals],[Total Cost]] -> 0

Sheet Year 3
B2: Personnel | K2: Instruction Reminders:
B3: Name | C3: Position Title | D3: Salary | E3: Basis | F3: Time Worked | G3: Percentage | H3: Total Cost | K3: To add a row to a section, you must click on an existing row in that section and select "Add Row." If you know how many rows you need in a section, add the rows prior to starting as you may have to remove information if you add rows after entering data.
D4: (Do not enter information into this row)
H5: =D5*F5*G5 -> 0
H6: =D6*F6*G6 -> 0
H7: =SUM(Table24350[Total Cost]) -> 0
B9: Fringe Benefits
B10: Name | C10: Position Title | D10: Salary | E10: Basis | F10: Time Worked | G10: Fringe Percentage | H10: Total Cost
D11: (Do not enter information into this row)
H12: =D12*F12*G12 -> 0
H13: =D13*F13*G13 -> 0
H14: =SUM(Table244956[Total Cost]) -> 0
B16: Travel
B17: Purpose of Travel | C17: Location | D17: Expense Type | E17: Basis | F17: Cost | G17: Quantity | H17: Total Cost
H18: =Table54451[[#This Row],[Cost]]*Table54451[[#This Row],[Quantity]] -> 0
H19: =Table54451[[#This Row],[Cost]]*Table54451[[#This Row],[Quantity]] -> 0
H20: =Table54451[[#This Row],[Cost]]*Table54451[[#This Row],[Quantity]] -> 0
H21: =SUM(Table54451[Total Cost]) -> 0
B23: Professional Development
B24: Course Name | C24: Purpose | D24: Location | E24: Delivery Method | F24: Cost | G24: # of Staff | H24: Total Cost
D25: (Do not enter information into this row) | H25: =Table64552[[#This Row],[Cost]]*Table64552[[#This Row],['# of Staff]] -> 0
H26: =Table64552[[#This Row],[Cost]]*Table64552[[#This Row],['# of Staff]] -> 0
H27: =Table64552[[#This Row],[Cost]]*Table64552[[#This Row],['# of Staff]] -> 0
H28: =SUM(Table64552[],Table64552[Total Cost]) -> 0
B30: Equipment
B31: Item | C31: Type | D31: Cost | E31: Unit | F31: Basis | G31: Quantity | H31: Total Cost
H32: =Table74653[[#This Row],[Cost]]*Table74653[[#This Row],[Quantity]] -> 0
H33: =Table74653[[#This Row],[Cost]]*Table74653[[#This Row],[Quantity]] -> 0
H34: =Table74653[[#This Row],[Cost]]*Table74653[[#This Row],[Quantity]] -> 0
H35: =SUM(Table74653[Total Cost]) -> 0
B37: Supplies
B38: Item | C38: Type | D38: Cost | E38: Unit | F38: Basis | G38: Quantity | H38: Total Cost
H39: =Table724855[[#This Row],[Cost]]*Table724855[[#This Row],[Quantity]] -> 0
H40: =Table724855[[#This Row],[Cost]]*Table724855[[#This Row],[Quantity]] -> 0
H41: =Table724855[[#This Row],[Cost]]*Table724855[[#This Row],[Quantity]] -> 0
H42: =SUM(Table724855[Total Cost]) -> 0
B44: Other
B45: Item | C45: Type | D45: Cost | E45: Unit | F45: Basis | G45: Quantity | H45: Total Cost
H46: =Table794754[[#This Row],[Cost]]*Table794754[[#This Row],[Quantity]] -> 0
H47: =Table794754[[#This Row],[Cost]]*Table794754[[#This Row],[Quantity]] -> 0
H48: =Table794754[[#This Row],[Cost]]*Table794754[[#This Row],[Quantity]] -> 0
H49: =SUM(Table794754[Total Cost]) -> 0
B54: Year 3 Budget Total | C54: =Table24350[[#Totals],[Total Cost]]+Table54451[[#Totals],[Total Cost]]+Table64552[[#Totals],[Total Cost]]+Table74653[[#Totals],[Total Cost]]+Table794754[[#Totals],[Total Cost]] -> 0

Sheet Year 4
B2: Personnel | K2: Instruction Reminders:
B3: Name | C3: Position Title | D3: Salary | E3: Basis | F3: Time Worked | G3: Percentage | H3: Total Cost | K3: To add a row to a section, you must click on an existing row in that section and select "Add Row." If you know how many rows you need in a section, add the rows prior to starting as you may have to remove information if you add rows after entering data.
D4: (Do not enter information into this row)
H5: =D5*F5*G5 -> 0
H6: =D6*F6*G6 -> 0
H7: =SUM(Table2435057[Total Cost]) -> 0
B9: Fringe Benefits
B10: Name | C10: Position Title | D10: Salary | E10: Basis | F10: Time Worked | G10: Fringe Percentage | H10: Total Cost
D11: (Do not enter information into this row)
H12: =D12*F12*G12 -> 0
H13: =D13*F13*G13 -> 0
H14: =SUM(Table24495663[Total Cost]) -> 0
B16: Travel
B17: Purpose of Travel | C17: Location | D17: Expense Type | E17: Basis | F17: Cost | G17: Quantity | H17: Total Cost
H18: =Table5445158[[#This Row],[Cost]]*Table5445158[[#This Row],[Quantity]] -> 0
H19: =Table5445158[[#This Row],[Cost]]*Table5445158[[#This Row],[Quantity]] -> 0
H20: =Table5445158[[#This Row],[Cost]]*Table5445158[[#This Row],[Quantity]] -> 0
H21: =SUM(Table5445158[Total Cost]) -> 0
B23: Professional Development
B24: Course Name | C24: Purpose | D24: Location | E24: Delivery Method | F24: Cost | G24: # of Staff | H24: Total Cost
D25: (Do not enter information into this row) | H25: =Table6455259[[#This Row],[Cost]]*Table6455259[[#This Row],['# of Staff]] -> 0
H26: =Table6455259[[#This Row],[Cost]]*Table6455259[[#This Row],['# of Staff]] -> 0
H27: =Table6455259[[#This Row],[Cost]]*Table6455259[[#This Row],['# of Staff]] -> 0
H28: =SUM(Table6455259[],Table6455259[Total Cost]) -> 0
B30: Equipment
B31: Item | C31: Type | D31: Cost | E31: Unit | F31: Basis | G31: Quantity | H31: Total Cost
H32: =Table7465360[[#This Row],[Cost]]*Table7465360[[#This Row],[Quantity]] -> 0
H33: =Table7465360[[#This Row],[Cost]]*Table7465360[[#This Row],[Quantity]] -> 0
H34: =Table7465360[[#This Row],[Cost]]*Table7465360[[#This Row],[Quantity]] -> 0
H35: =SUM(Table7465360[Total Cost]) -> 0
B37: Supplies
B38: Item | C38: Type | D38: Cost | E38: Unit | F38: Basis | G38: Quantity | H38: Total Cost
H39: =Table72485562[[#This Row],[Cost]]*Table72485562[[#This Row],[Quantity]] -> 0
H40: =Table72485562[[#This Row],[Cost]]*Table72485562[[#This Row],[Quantity]] -> 0
H41: =Table72485562[[#This Row],[Cost]]*Table72485562[[#This Row],[Quantity]] -> 0
H42: =SUM(Table72485562[Total Cost]) -> 0
B44: Other
B45: Item | C45: Type | D45: Cost | E45: Unit | F45: Basis | G45: Quantity | H45: Total Cost
H46: =Table79475461[[#This Row],[Cost]]*Table79475461[[#This Row],[Quantity]] -> 0
H47: =Table79475461[[#This Row],[Cost]]*Table79475461[[#This Row],[Quantity]] -> 0
H48: =Table79475461[[#This Row],[Cost]]*Table79475461[[#This Row],[Quantity]] -> 0
H49: =SUM(Table79475461[Total Cost]) -> 0
B54: Year 4 Budget Total | C54: =Table2435057[[#Totals],[Total Cost]]+Table5445158[[#Totals],[Total Cost]]+Table6455259[[#Totals],[Total Cost]]+Table7465360[[#Totals],[Total Cost]]+Table79475461[[#Totals],[Total Cost]] -> 0

Sheet Year 5
B2: Personnel | K2: Instruction Reminders:
B3: Name | C3: Position Title | D3: Salary | E3: Basis | F3: Time Worked | G3: Percentage | H3: Total Cost | K3: To add a row to a section, you must click on an existing row in that section and select "Add Row." If you know how many rows you need in a section, add the rows prior to starting as you may have to remove information if you add rows after entering data.
D4: (Do not enter information into this row)
H5: =D5*F5*G5 -> 0
H6: =D6*F6*G6 -> 0
H7: =SUM(Table243505764[Total Cost]) -> 0
B9: Fringe Benefits
B10: Name | C10: Position Title | D10: Salary | E10: Basis | F10: Time Worked | G10: Fringe Percentage | H10: Total Cost
D11: (Do not enter information into this row)
H12: =D12*F12*G12 -> 0
H13: =D13*F13*G13 -> 0
H14: =SUM(Table2449566370[Total Cost]) -> 0
B16: Travel
B17: Purpose of Travel | C17: Location | D17: Expense Type | E17: Basis | F17: Cost | G17: Quantity | H17: Total Cost
H18: =Table544515865[[#This Row],[Cost]]*Table544515865[[#This Row],[Quantity]] -> 0
H19: =Table544515865[[#This Row],[Cost]]*Table544515865[[#This Row],[Quantity]] -> 0
H20: =Table544515865[[#This Row],[Cost]]*Table544515865[[#This Row],[Quantity]] -> 0
H21: =SUM(Table544515865[Total Cost]) -> 0
B23: Professional Development
B24: Course Name | C24: Purpose | D24: Location | E24: Delivery Method | F24: Cost | G24: # of Staff | H24: Total Cost
D25: (Do not enter information into this row) | H25: =Table645525966[[#This Row],[Cost]]*Table645525966[[#This Row],['# of Staff]] -> 0
H26: =Table645525966[[#This Row],[Cost]]*Table645525966[[#This Row],['# of Staff]] -> 0
H27: =Table645525966[[#This Row],[Cost]]*Table645525966[[#This Row],['# of Staff]] -> 0
H28: =SUM(Table645525966[],Table645525966[Total Cost]) -> 0
B30: Equipment
B31: Item | C31: Type | D31: Cost | E31: Unit | F31: Basis | G31: Quantity | H31: Total Cost
H32: =Table746536067[[#This Row],[Cost]]*Table746536067[[#This Row],[Quantity]] -> 0
H33: =Table746536067[[#This Row],[Cost]]*Table746536067[[#This Row],[Quantity]] -> 0
H34: =Table746536067[[#This Row],[Cost]]*Table746536067[[#This Row],[Quantity]] -> 0
H35: =SUM(Table746536067[Total Cost]) -> 0
B37: Supplies
B38: Item | C38: Type | D38: Cost | E38: Unit | F38: Basis | G38: Quantity | H38: Total Cost
H39: =Table7248556269[[#This Row],[Cost]]*Table7248556269[[#This Row],[Quantity]] -> 0
H40: =Table7248556269[[#This Row],[Cost]]*Table7248556269[[#This Row],[Quantity]] -> 0
H41: =Table7248556269[[#This Row],[Cost]]*Table7248556269[[#This Row],[Quantity]] -> 0
H42: =SUM(Table7248556269[Total Cost]) -> 0
B44: Other
B45: Item | C45: Type | D45: Cost | E45: Unit | F45: Basis | G45: Quantity | H45: Total Cost
H46: =Table7947546168[[#This Row],[Cost]]*Table7947546168[[#This Row],[Quantity]] -> 0
H47: =Table7947546168[[#This Row],[Cost]]*Table7947546168[[#This Row],[Quantity]] -> 0
H48: =Table7947546168[[#This Row],[Cost]]*Table7947546168[[#This Row],[Quantity]] -> 0
H49: =SUM(Table7947546168[Total Cost]) -> 0
B54: Year 4 Budget Total | C54: =Table243505764[[#Totals],[Total Cost]]+Table544515865[[#Totals],[Total Cost]]+Table645525966[[#Totals],[Total Cost]]+Table746536067[[#Totals],[Total Cost]]+Table7947546168[[#Totals],[Total Cost]] -> 0

Sheet Budget Detail Summary
C3: Personnel | D3: Fringe Benefits | E3: Travel | F3: Professional Development | G3: Equipment | H3: Supplies | I3: Other | J3: Total
B4: Year 1 | C4: =Table2[[#Totals],[Total Cost]] -> 0 | D4: =Table24[[#Totals],[Total Cost]] -> 0 | E4: =Table5[[#Totals],[Total Cost]] -> 0 | F4: =Table6[[#Totals],[Total Cost]] -> 0 | G4: =Table7[[#Totals],[Total Cost]] -> 0 | H4: =Table72[[#Totals],[Total Cost]] -> 0 | I4: =Table79[[#Totals],[Total Cost]] -> 0 | J4: =SUM(C4:I4) -> 0
B5: Year 2 | C5: =Table243[[#Totals],[Total Cost]] -> 0 | D5: =Table2449[[#Totals],[Total Cost]] -> 0 | E5: =Table544[[#Totals],[Total Cost]] -> 0 | F5: =Table645[[#Totals],[Total Cost]] -> 0 | G5: =Table746[[#Totals],[Total Cost]] -> 0 | H5: =Table7248[[#Totals],[Total Cost]] -> 0 | I5: =Table7947[[#Totals],[Total Cost]] -> 0 | J5: =SUM(C5:I5) -> 0
B6: Year 3 | C6: =Table24350[[#Totals],[Total Cost]] -> 0 | D6: =Table244956[[#Totals],[Total Cost]] -> 0 | E6: =Table54451[[#Totals],[Total Cost]] -> 0 | F6: =Table64552[[#Totals],[Total Cost]] -> 0 | G6: =Table74653[[#Totals],[Total Cost]] -> 0 | H6: =Table724855[[#Totals],[Total Cost]] -> 0 | I6: =Table794754[[#Totals],[Total Cost]] -> 0 | J6: =SUM(C6:I6) -> 0
B7: Year 4 | C7: =Table2435057[[#Totals],[Total Cost]] -> 0 | D7: =Table24495663[[#Totals],[Total Cost]] -> 0 | E7: =Table5445158[[#Totals],[Total Cost]] -> 0 | F7: =Table6455259[[#Totals],[Total Cost]] -> 0 | G7: =Table7465360[[#Totals],[Total Cost]] -> 0 | H7: =Table72485562[[#Totals],[Total Cost]] -> 0 | I7: =Table79475461[[#Totals],[Total Cost]] -> 0 | J7: =SUM(C7:I7) -> 0
B8: Year 5 | C8: =Table243505764[[#Totals],[Total Cost]] -> 0 | D8: =Table2449566370[[#Totals],[Total Cost]] -> 0 | E8: =Table544515865[[#Totals],[Total Cost]] -> 0 | F8: =Table645525966[[#Totals],[Total Cost]] -> 0 | G8: =Table746536067[[#Totals],[Total Cost]] -> 0 | H8: =Table7248556269[[#Totals],[Total Cost]] -> 0 | I8: =Table7947546168[[#Totals],[Total Cost]] -> 0 | J8: =SUM(C8:I8) -> 0
B9: Totals | C9: =SUM(C4:C8) -> 0 | D9: =SUM(D4:D8) -> 0 | E9: =SUM(E4:E8) -> 0 | F9: 0 | G9: 0 | H9: 0 | I9: 0 | J9: 0
